[Event "*** Titled Tuesday Blitz"]
[Site "Chess.com"]
[Date "2020.04.07"]
[Round "7"]
[White "Zurability"]
[Black "Hadza_3"]
[Result "1-0"]
[WhiteElo "2662"]
[BlackElo "2433"]
[TimeControl "180+1"]
[EndTime "14:19:13 PDT"]
[Termination "Zurability won on time"]

1. c4 {[%clk 0:03:00.9]} 1... e5 {[%clk 0:02:59.8]} 2. Nc3 {[%clk 0:02:58.8]}
2... Nc6 {[%clk 0:03:00.7]} 3. Nf3 {[%clk 0:02:58.7]} 3... g6 {[%clk 0:02:52.7]}
4. e3 {[%clk 0:02:58.6]} 4... Bg7 {[%clk 0:02:53]} 5. d4 {[%clk 0:02:59.2]} 5...
d6 {[%clk 0:02:47.9]} 6. Be2 {[%clk 0:02:59.5]} 6... Nf6 {[%clk 0:02:46.8]} 7.
O-O {[%clk 0:03:00]} 7... O-O {[%clk 0:02:46.5]} 8. Qc2 {[%clk 0:03:00.5]} 8...
Qe7 {[%clk 0:02:46.5]} 9. Nd5 {[%clk 0:02:48.8]} 9... Qd8 {[%clk 0:02:45.3]} 10.
dxe5 {[%clk 0:02:45.3]} 10... Nxe5 {[%clk 0:02:43.6]} 11. Rd1 {[%clk 0:02:43.1]}
11... Nxf3+ {[%clk 0:02:40.8]} 12. Bxf3 {[%clk 0:02:43.8]} 12... Nd7 {[%clk
0:02:32.7]} 13. Bd2 {[%clk 0:02:29.7]} 13... Ne5 {[%clk 0:02:32.2]} 14. Be2
{[%clk 0:02:27.3]} 14... b6 {[%clk 0:02:11.5]} 15. Bc3 {[%clk 0:02:25.1]} 15...
Bb7 {[%clk 0:02:11.4]} 16. b4 {[%clk 0:02:19]} 16... Rc8 {[%clk 0:01:46]} 17.
Qb2 {[%clk 0:02:05.3]} 17... f6 {[%clk 0:01:25.6]} 18. c5 {[%clk 0:01:54.4]}
18... Rf7 {[%clk 0:01:19.5]} 19. f4 {[%clk 0:01:27.5]} 19... Nd7 {[%clk
0:01:16.2]} 20. cxd6 {[%clk 0:01:21.5]} 20... Bxd5 {[%clk 0:01:07]} 21. Rxd5
{[%clk 0:01:19.5]} 21... c6 {[%clk 0:01:07.1]} 22. Rdd1 {[%clk 0:01:15.2]} 22...
b5 {[%clk 0:01:00.8]} 23. Rac1 {[%clk 0:01:02.9]} 23... Nb6 {[%clk 0:00:59]} 24.
e4 {[%clk 0:01:00.2]} 24... Qd7 {[%clk 0:00:48.8]} 25. e5 {[%clk 0:00:59.8]}
25... Re8 {[%clk 0:00:46.1]} 26. exf6 {[%clk 0:00:56.5]} 26... Bh6 {[%clk
0:00:42.2]} 27. Be5 {[%clk 0:00:56.9]} 27... Nd5 {[%clk 0:00:40.8]} 28. Bxb5
{[%clk 0:00:37.3]} 28... cxb5 {[%clk 0:00:15.3]} 29. Rxd5 {[%clk 0:00:36.5]}
29... Qg4 {[%clk 0:00:16.2]} 30. h3 {[%clk 0:00:19.7]} 30... Qe6 {[%clk
0:00:13.2]} 31. Rcd1 {[%clk 0:00:18.2]} 31... Rd8 {[%clk 0:00:13]} 32. Rxb5
{[%clk 0:00:17.9]} 32... Rfd7 {[%clk 0:00:10.2]} 33. Rc5 {[%clk 0:00:14.2]}
33... Bf8 {[%clk 0:00:07.8]} 34. Rc6 {[%clk 0:00:14.1]} 34... Kf7 {[%clk
0:00:07.2]} 35. Qc2 {[%clk 0:00:11.7]} 35... Qf5 {[%clk 0:00:05.3]} 36. Qc4+
{[%clk 0:00:10]} 36... Qe6 {[%clk 0:00:05.5]} 37. Rd4 {[%clk 0:00:08.4]} 37...
h6 {[%clk 0:00:04.4]} 38. Rc7 {[%clk 0:00:07.8]} 38... g5 {[%clk 0:00:02.6]} 39.
Rxd7+ {[%clk 0:00:07.4]} 39... Rxd7 {[%clk 0:00:03.5]} 40. fxg5 {[%clk
0:00:07.5]} 40... hxg5 {[%clk 0:00:03.1]} 41. Rg4 {[%clk 0:00:07.2]} 41... Qxc4
{[%clk 0:00:02]} 42. Rxc4 {[%clk 0:00:08.1]} 42... Ke6 {[%clk 0:00:02.9]} 43.
Bg3 {[%clk 0:00:08.8]} 43... Bxd6 {[%clk 0:00:02.3]} 44. Rc6 {[%clk 0:00:09]}
1-0

[Event "*** Titled Tuesday Blitz"]
[Site "Chess.com"]
[Date "2020.04.07"]
[Round "7"]
[White "swisspower96"]
[Black "david_gomez"]
[Result "1-0"]
[WhiteElo "2658"]
[BlackElo "2432"]
[TimeControl "180+1"]
[EndTime "14:19:13 PDT"]
[Termination "swisspower96 won by resignation"]

1. d4 {[%clk 0:03:00.9]} 1... Nf6 {[%clk 0:02:59.5]} 2. c4 {[%clk 0:03:00.6]}
2... e6 {[%clk 0:02:59.2]} 3. Nf3 {[%clk 0:02:58.9]} 3... d5 {[%clk 0:02:58.8]}
4. g3 {[%clk 0:02:53.8]} 4... Be7 {[%clk 0:02:58.5]} 5. Bg2 {[%clk 0:02:49.3]}
5... O-O {[%clk 0:02:58]} 6. O-O {[%clk 0:02:49.6]} 6... Nbd7 {[%clk 0:02:57.3]}
7. Qb3 {[%clk 0:02:48.6]} 7... c6 {[%clk 0:02:56.7]} 8. Bf4 {[%clk 0:02:45.3]}
8... b6 {[%clk 0:02:56]} 9. Rc1 {[%clk 0:02:43.9]} 9... Ba6 {[%clk 0:02:47.8]}
10. cxd5 {[%clk 0:02:40.7]} 10... cxd5 {[%clk 0:02:46.2]} 11. Nc3 {[%clk
0:02:39.6]} 11... Bc4 {[%clk 0:02:44.3]} 12. Qc2 {[%clk 0:02:36.2]} 12... Rc8
{[%clk 0:02:43.3]} 13. a4 {[%clk 0:02:21.1]} 13... Bb4 {[%clk 0:02:36.2]} 14.
Qd1 {[%clk 0:02:08.3]} 14... Ne4 {[%clk 0:02:30.7]} 15. Nb5 {[%clk 0:01:53.8]}
15... g5 {[%clk 0:02:02]} 16. Be3 {[%clk 0:01:45.2]} 16... a6 {[%clk 0:01:57.7]}
17. Na3 {[%clk 0:01:44.8]} 17... Bxa3 {[%clk 0:01:53.8]} 18. Rxa3 {[%clk
0:01:44.4]} 18... f5 {[%clk 0:01:52.6]} 19. b3 {[%clk 0:01:29.5]} 19... Qe7
{[%clk 0:01:50.1]} 20. Raa1 {[%clk 0:01:28.8]} 20... f4 {[%clk 0:01:46.3]} 21.
Bd2 {[%clk 0:01:16.9]} 21... g4 {[%clk 0:01:30.9]} 22. bxc4 {[%clk 0:01:16.7]}
22... gxf3 {[%clk 0:01:27.8]} 23. Bxf3 {[%clk 0:01:13.1]} 23... fxg3 {[%clk
0:01:25.8]} 24. hxg3 {[%clk 0:01:11.2]} 24... Nxd2 {[%clk 0:01:20.9]} 25. Qxd2
{[%clk 0:01:11.5]} 25... dxc4 {[%clk 0:01:21.8]} 26. Kg2 {[%clk 0:01:12]} 26...
Nf6 {[%clk 0:01:17.5]} 27. Rh1 {[%clk 0:01:09]} 27... Nd5 {[%clk 0:01:14.4]} 28.
Rh5 {[%clk 0:01:03.8]} 28... c3 {[%clk 0:01:12.7]} 29. Qh6 {[%clk 0:01:02.3]}
29... Nf6 {[%clk 0:01:06.6]} 30. Re5 {[%clk 0:00:42.5]} 30... Qd6 {[%clk
0:00:43.4]} 31. Rg5+ {[%clk 0:00:35.1]} 31... Kf7 {[%clk 0:00:42.1]} 32. Bh5+
{[%clk 0:00:30.1]} 32... Nxh5 {[%clk 0:00:39.8]} 33. Qxh5+ {[%clk 0:00:28.1]}
33... Ke7 {[%clk 0:00:39.8]} 34. Rg7+ {[%clk 0:00:28.1]} 34... Kd8 {[%clk
0:00:39.9]} 35. Qg5+ {[%clk 0:00:28.2]} 35... Ke8 {[%clk 0:00:38.3]} 36. e4
{[%clk 0:00:28.5]} 36... c2 {[%clk 0:00:35.6]} 37. Rc1 {[%clk 0:00:28.4]} 37...
Qa3 {[%clk 0:00:13.9]} 38. Kg1 {[%clk 0:00:23.1]} 38... Qb4 {[%clk 0:00:08.6]}
39. d5 {[%clk 0:00:20.6]} 39... Rf7 {[%clk 0:00:05.1]} 40. Qh5 {[%clk
0:00:18.1]} 40... Rc7 {[%clk 0:00:03.8]} 41. dxe6 {[%clk 0:00:18.1]} 41... Qd2
{[%clk 0:00:03]} 42. exf7+ {[%clk 0:00:18.3]} 42... Kf8 {[%clk 0:00:03.1]} 43.
Rg8+ {[%clk 0:00:18.8]} 1-0

[Event "*** Titled Tuesday Blitz"]
[Site "Chess.com"]
[Date "2020.04.07"]
[Round "7"]
[White "BaMBoMaTTo"]
[Black "Pavlov_Sergey"]
[Result "1-0"]
[WhiteElo "2741"]
[BlackElo "2558"]
[TimeControl "180+1"]
[EndTime "14:19:14 PDT"]
[Termination "BaMBoMaTTo won on time"]

1. d4 {[%clk 0:03:00]} 1... Nf6 {[%clk 0:02:59.7]} 2. c4 {[%clk 0:03:00.4]} 2...
e6 {[%clk 0:02:59.7]} 3. Nf3 {[%clk 0:03:00.7]} 3... d5 {[%clk 0:02:59.7]} 4.
Nc3 {[%clk 0:03:00.9]} 4... dxc4 {[%clk 0:03:00.2]} 5. e4 {[%clk 0:03:00.3]}
5... Bb4 {[%clk 0:03:00.6]} 6. Bg5 {[%clk 0:02:59.1]} 6... h6 {[%clk 0:02:59.5]}
7. Bxf6 {[%clk 0:02:57.7]} 7... Qxf6 {[%clk 0:02:59.9]} 8. Bxc4 {[%clk 0:02:58]}
8... c5 {[%clk 0:03:00.5]} 9. e5 {[%clk 0:02:57.5]} 9... Qd8 {[%clk 0:02:59.6]}
10. O-O {[%clk 0:02:56.8]} 10... cxd4 {[%clk 0:03:00]} 11. Ne4 {[%clk
0:02:56.3]} 11... O-O {[%clk 0:02:59.8]} 12. Qe2 {[%clk 0:02:56.1]} 12... Be7
{[%clk 0:02:54.9]} 13. Rad1 {[%clk 0:02:53]} 13... Qc7 {[%clk 0:02:52.9]} 14.
Ng3 {[%clk 0:02:52.8]} 14... Rd8 {[%clk 0:02:48.4]} 15. Bd3 {[%clk 0:02:53]}
15... Nd7 {[%clk 0:02:48.1]} 16. Qe4 {[%clk 0:02:29.2]} 16... Nf8 {[%clk
0:02:47.9]} 17. Qg4 {[%clk 0:02:29.2]} 17... Bd7 {[%clk 0:02:29.8]} 18. Nh5
{[%clk 0:02:28.7]} 18... g6 {[%clk 0:02:29.9]} 19. Nf4 {[%clk 0:02:22.6]} 19...
Kg7 {[%clk 0:02:02.4]} 20. h4 {[%clk 0:02:14.9]} 20... Bc6 {[%clk 0:02:01.6]}
21. Rfe1 {[%clk 0:01:41.3]} 21... Bxf3 {[%clk 0:01:53.3]} 22. gxf3 {[%clk
0:01:42.2]} 22... Rac8 {[%clk 0:01:18]} 23. Kh2 {[%clk 0:01:41.5]} 23... Qb6
{[%clk 0:01:01.3]} 24. Re2 {[%clk 0:01:41.3]} 24... Rc5 {[%clk 0:00:49.9]} 25.
Rg1 {[%clk 0:01:41.2]} 25... Qc7 {[%clk 0:00:48.6]} 26. Bxg6 {[%clk 0:01:18.7]}
26... fxg6 {[%clk 0:00:36.3]} 27. Nxg6 {[%clk 0:01:19.6]} 27... Bg5 {[%clk
0:00:26.4]} 28. Nxf8 {[%clk 0:00:35.8]} 28... Rxf8 {[%clk 0:00:25.4]} 29. hxg5
{[%clk 0:00:22.1]} 29... h5 {[%clk 0:00:25.6]} 30. Qxe6 {[%clk 0:00:22.1]} 30...
Rxf3 {[%clk 0:00:25.5]} 31. g6 {[%clk 0:00:19.7]} 31... d3 {[%clk 0:00:20.7]}
32. Re4 {[%clk 0:00:14.4]} 32... Rxf2+ {[%clk 0:00:19.7]} 33. Kh3 {[%clk
0:00:14.9]} 33... Rf3+ {[%clk 0:00:19.3]} 34. Kh2 {[%clk 0:00:13.2]} 34... Rc2+
{[%clk 0:00:18.5]} 35. Kh1 {[%clk 0:00:11.9]} 35... d2 {[%clk 0:00:15.9]} 36.
Rd4 {[%clk 0:00:08.2]} 36... Qc6 {[%clk 0:00:08]} 37. Rd7+ {[%clk 0:00:08.3]}
1-0

[Event "*** Titled Tuesday Blitz"]
[Site "Chess.com"]
[Date "2020.04.07"]
[Round "7"]
[White "ChadBiryani"]
[Black "Resignify"]
[Result "0-1"]
[WhiteElo "2367"]
[BlackElo "2226"]
[TimeControl "180+1"]
[EndTime "14:19:14 PDT"]
[Termination "Resignify won by resignation"]

1. d4 {[%clk 0:03:00.2]} 1... Nf6 {[%clk 0:03:00.1]} 2. Bf4 {[%clk 0:02:59.4]}
2... c5 {[%clk 0:02:59.1]} 3. dxc5 {[%clk 0:02:59.1]} 3... Na6 {[%clk
0:02:56.8]} 4. Nc3 {[%clk 0:02:45.8]} 4... Nxc5 {[%clk 0:02:54.2]} 5. e3 {[%clk
0:02:41.6]} 5... d6 {[%clk 0:02:52.6]} 6. Bc4 {[%clk 0:02:34.9]} 6... a6 {[%clk
0:02:48.2]} 7. a4 {[%clk 0:02:33.6]} 7... e5 {[%clk 0:02:36.3]} 8. Bg3 {[%clk
0:02:31.7]} 8... Be6 {[%clk 0:02:35.2]} 9. Bxe6 {[%clk 0:02:30.6]} 9... Nxe6
{[%clk 0:02:25.7]} 10. Nf3 {[%clk 0:02:30.7]} 10... Be7 {[%clk 0:02:23.4]} 11.
O-O {[%clk 0:02:30]} 11... O-O {[%clk 0:02:20.1]} 12. h3 {[%clk 0:02:27.9]}
12... Nc5 {[%clk 0:02:15.3]} 13. Nd5 {[%clk 0:02:22.7]} 13... Nxd5 {[%clk
0:02:14.4]} 14. Qxd5 {[%clk 0:02:21.7]} 14... Qc7 {[%clk 0:02:14.4]} 15. Rfd1
{[%clk 0:02:17.6]} 15... Rac8 {[%clk 0:02:06.3]} 16. c3 {[%clk 0:01:59.3]} 16...
Qc6 {[%clk 0:02:01.6]} 17. a5 {[%clk 0:01:10.5]} 17... Qxd5 {[%clk 0:01:35.2]}
18. Rxd5 {[%clk 0:01:11.4]} 18... f5 {[%clk 0:01:22.1]} 19. Rad1 {[%clk
0:00:53.3]} 19... h6 {[%clk 0:01:12]} 20. Ne1 {[%clk 0:00:35.8]} 20... f4 {[%clk
0:01:02]} 21. exf4 {[%clk 0:00:32.9]} 21... exf4 {[%clk 0:01:02.1]} 22. Bh2
{[%clk 0:00:33.4]} 22... g5 {[%clk 0:00:55.9]} 23. Nc2 {[%clk 0:00:30.3]} 23...
Nb3 {[%clk 0:00:43.6]} 24. f3 {[%clk 0:00:20.6]} 24... Kf7 {[%clk 0:00:39.5]}
25. Kf1 {[%clk 0:00:20.4]} 25... Rc5 {[%clk 0:00:35.8]} 26. Bg1 {[%clk 0:00:20]}
26... Rxd5 {[%clk 0:00:34.8]} 27. Rxd5 {[%clk 0:00:19.7]} 27... Ke6 {[%clk
0:00:34.2]} 28. Nb4 {[%clk 0:00:17.1]} 28... Rc8 {[%clk 0:00:29.2]} 29. Ke2
{[%clk 0:00:16.4]} 29... Rc4 {[%clk 0:00:28.7]} 30. Rd1 {[%clk 0:00:07.2]} 30...
Nxa5 {[%clk 0:00:24.3]} 31. Nd5 {[%clk 0:00:07.8]} 31... Rc8 {[%clk 0:00:18.4]}
32. Bb6 {[%clk 0:00:05.7]} 32... Nc4 {[%clk 0:00:17.8]} 33. b3 {[%clk
0:00:01.6]} 33... Nxb6 {[%clk 0:00:16.2]} 34. Nxb6 {[%clk 0:00:01.7]} 34... Rxc3
{[%clk 0:00:16.9]} 35. Rb1 {[%clk 0:00:02]} 35... Rc2+ {[%clk 0:00:16.5]} 36.
Kf1 {[%clk 0:00:02]} 36... d5 {[%clk 0:00:15]} 37. Re1+ {[%clk 0:00:01.6]} 37...
Kf7 {[%clk 0:00:14.2]} 38. Nxd5 {[%clk 0:00:01.1]} 38... Bc5 {[%clk 0:00:13.7]}
39. Rd1 {[%clk 0:00:01.3]} 39... Rf2+ {[%clk 0:00:13.2]} 40. Ke1 {[%clk
0:00:01.9]} 40... Rxg2 {[%clk 0:00:12.7]} 41. Nc3 {[%clk 0:00:02.6]} 41... Bb4
{[%clk 0:00:11.3]} 42. Rc1 {[%clk 0:00:01.9]} 42... Rg1+ {[%clk 0:00:10.1]} 43.
Kd2 {[%clk 0:00:01.7]} 43... Rxc1 {[%clk 0:00:10.5]} 44. Kxc1 {[%clk 0:00:01.9]}
44... Bxc3 {[%clk 0:00:11.1]} 0-1

[Event "*** Titled Tuesday Blitz"]
[Site "Chess.com"]
[Date "2020.04.07"]
[Round "7"]
[White "politeplayer"]
[Black "serhanberat_ozdemir"]
[Result "0-1"]
[WhiteElo "2212"]
[BlackElo "2475"]
[TimeControl "180+1"]
[EndTime "14:19:16 PDT"]
[Termination "serhanberat_ozdemir won by resignation"]

1. e4 {[%clk 0:03:00.9]} 1... c5 {[%clk 0:02:59.1]} 2. Nf3 {[%clk 0:02:59.4]}
2... e6 {[%clk 0:02:59.3]} 3. d4 {[%clk 0:02:59.8]} 3... cxd4 {[%clk 0:03:00.2]}
4. Nxd4 {[%clk 0:03:00.3]} 4... a6 {[%clk 0:03:00.4]} 5. Bd3 {[%clk 0:03:00.7]}
5... Bc5 {[%clk 0:02:59.5]} 6. Nb3 {[%clk 0:02:59.6]} 6... Ba7 {[%clk
0:02:59.9]} 7. Nc3 {[%clk 0:02:56.9]} 7... Nc6 {[%clk 0:02:58.8]} 8. Qg4 {[%clk
0:02:56.4]} 8... Nf6 {[%clk 0:02:44.7]} 9. Qg3 {[%clk 0:02:53]} 9... d6 {[%clk
0:02:09.7]} 10. O-O {[%clk 0:02:46.5]} 10... b5 {[%clk 0:02:00.1]} 11. Qxg7
{[%clk 0:02:24.9]} 11... Rg8 {[%clk 0:01:57.5]} 12. Qh6 {[%clk 0:02:24]} 12...
Ne5 {[%clk 0:01:56.3]} 13. Be2 {[%clk 0:02:04.6]} 13... Rg6 {[%clk 0:01:51.4]}
14. Qh4 {[%clk 0:02:00.1]} 14... b4 {[%clk 0:01:46.9]} 15. Nd1 {[%clk
0:01:53.8]} 15... Bb7 {[%clk 0:01:43.4]} 16. Be3 {[%clk 0:01:48]} 16... Bxe4
{[%clk 0:01:34.2]} 17. f3 {[%clk 0:01:38.8]} 17... Bxe3+ {[%clk 0:01:26]} 18.
Nxe3 {[%clk 0:01:38.2]} 18... Qb6 {[%clk 0:01:25.6]} 19. Qf2 {[%clk 0:01:31.4]}
19... Bc6 {[%clk 0:01:21.5]} 20. Nc4 {[%clk 0:01:26.3]} 20... Qxf2+ {[%clk
0:01:18.5]} 21. Kxf2 {[%clk 0:01:23.5]} 21... Nxc4 {[%clk 0:01:15.4]} 22. Bxc4
{[%clk 0:01:23.5]} 22... Bb5 {[%clk 0:01:06.1]} 23. Bxb5+ {[%clk 0:01:18.9]}
23... axb5 {[%clk 0:01:07]} 24. Nd4 {[%clk 0:01:18.7]} 24... Rg5 {[%clk
0:01:06.6]} 25. a3 {[%clk 0:01:11.8]} 25... bxa3 {[%clk 0:00:59.3]} 26. Rxa3
{[%clk 0:01:11.1]} 26... Rxa3 {[%clk 0:00:57.9]} 27. bxa3 {[%clk 0:01:11.2]}
27... Rc5 {[%clk 0:00:56.1]} 28. Rb1 {[%clk 0:01:07.4]} 28... Rc4 {[%clk
0:00:40]} 29. Nxb5 {[%clk 0:01:04.8]} 29... Rxc2+ {[%clk 0:00:37.5]} 30. Kg3
{[%clk 0:01:04]} 30... d5 {[%clk 0:00:36.5]} 31. h3 {[%clk 0:00:52.8]} 31... Ke7
{[%clk 0:00:33]} 32. a4 {[%clk 0:00:49.7]} 32... Ra2 {[%clk 0:00:31.4]} 33. Nc3
{[%clk 0:00:48.7]} 33... Ra3 {[%clk 0:00:29.1]} 34. Rb7+ {[%clk 0:00:46.9]}
34... Nd7 {[%clk 0:00:27.2]} 35. Rc7 {[%clk 0:00:37.9]} 35... Kd8 {[%clk
0:00:25.3]} 36. Rc6 {[%clk 0:00:35]} 36... Ne5 {[%clk 0:00:25.8]} 37. Rc5 {[%clk
0:00:32.7]} 37... Nc4 {[%clk 0:00:23.1]} 38. Nb5 {[%clk 0:00:26.3]} 38... Rxa4
{[%clk 0:00:20]} 39. Nd4 {[%clk 0:00:25.3]} 39... Kd7 {[%clk 0:00:18.3]} 40. Rb5
{[%clk 0:00:22.2]} 40... Nd6 {[%clk 0:00:15.6]} 0-1

[Event "*** Titled Tuesday Blitz"]
[Site "Chess.com"]
[Date "2020.04.07"]
[Round "7"]
[White "esteban062000"]
[Black "ersekitamara"]
[Result "0-1"]
[WhiteElo "2167"]
[BlackElo "1929"]
[TimeControl "180+1"]
[EndTime "14:19:16 PDT"]
[Termination "ersekitamara won by resignation"]

1. Nf3 {[%clk 0:03:00.9]} 1... Nf6 {[%clk 0:02:58.7]} 2. c4 {[%clk 0:03:00.8]}
2... e6 {[%clk 0:02:58.3]} 3. g3 {[%clk 0:02:59.1]} 3... b6 {[%clk 0:02:58.4]}
4. Bg2 {[%clk 0:02:59.3]} 4... Bb7 {[%clk 0:02:59.1]} 5. O-O {[%clk 0:02:59.6]}
5... Be7 {[%clk 0:02:59.3]} 6. Nc3 {[%clk 0:02:59.6]} 6... c5 {[%clk 0:02:58.9]}
7. b3 {[%clk 0:02:58.6]} 7... O-O {[%clk 0:02:59.4]} 8. Bb2 {[%clk 0:02:58.7]}
8... a6 {[%clk 0:02:59.8]} 9. e3 {[%clk 0:02:58.9]} 9... Qc7 {[%clk 0:03:00.1]}
10. Qe2 {[%clk 0:02:59.1]} 10... d6 {[%clk 0:03:00.6]} 11. Rfd1 {[%clk
0:02:59.3]} 11... Nbd7 {[%clk 0:03:01.3]} 12. Rac1 {[%clk 0:02:59.5]} 12... Rac8
{[%clk 0:03:00.9]} 13. d4 {[%clk 0:02:59.2]} 13... cxd4 {[%clk 0:03:01.8]} 14.
exd4 {[%clk 0:02:58.9]} 14... Qb8 {[%clk 0:03:01.3]} 15. Na4 {[%clk 0:02:58.9]}
15... Rfe8 {[%clk 0:02:59.7]} 16. Ba3 {[%clk 0:02:42.2]} 16... Qa8 {[%clk
0:02:59.3]} 17. Nh4 {[%clk 0:02:41.3]} 17... Bxg2 {[%clk 0:02:58.4]} 18. Nxg2
{[%clk 0:02:42.2]} 18... Rb8 {[%clk 0:02:52.3]} 19. Nc3 {[%clk 0:02:30.7]} 19...
b5 {[%clk 0:02:49.4]} 20. cxb5 {[%clk 0:02:14.9]} 20... axb5 {[%clk 0:02:50.3]}
21. Bb2 {[%clk 0:01:38.5]} 21... b4 {[%clk 0:02:43.9]} 22. Na4 {[%clk
0:01:36.2]} 22... Nd5 {[%clk 0:02:42.3]} 23. Ne3 {[%clk 0:01:32.7]} 23... N5b6
{[%clk 0:02:29.1]} 24. Nxb6 {[%clk 0:00:45.7]} 24... Nxb6 {[%clk 0:02:30]} 25.
Nc4 {[%clk 0:00:45.8]} 25... Nxc4 {[%clk 0:02:05.8]} 26. Rxc4 {[%clk 0:00:45.3]}
26... Qxa2 {[%clk 0:01:58.5]} 27. Qc2 {[%clk 0:00:43.4]} 27... d5 {[%clk
0:01:54.3]} 28. Rc7 {[%clk 0:00:25]} 28... Qa5 {[%clk 0:01:43.4]} 29. Ra1 {[%clk
0:00:22.7]} 29... Qb6 {[%clk 0:01:33.9]} 30. Raa7 {[%clk 0:00:18.6]} 30... Bf6
{[%clk 0:00:57.4]} 31. Rxf7 {[%clk 0:00:16]} 31... Rbc8 {[%clk 0:00:55.2]} 32.
Rfc7 {[%clk 0:00:14.3]} 32... Rxc7 {[%clk 0:00:50.4]} 33. Qxc7 {[%clk
0:00:13.6]} 33... Qxc7 {[%clk 0:00:50.9]} 34. Rxc7 {[%clk 0:00:14.5]} 34... Ra8
{[%clk 0:00:48.7]} 35. Kg2 {[%clk 0:00:10.9]} 35... Ra2 {[%clk 0:00:48.2]} 36.
Bc1 {[%clk 0:00:10.8]} 36... Bxd4 {[%clk 0:00:48.6]} 37. Rb7 {[%clk 0:00:10.4]}
37... Rxf2+ {[%clk 0:00:45.4]} 38. Kh3 {[%clk 0:00:10.9]} 38... Bc3 {[%clk
0:00:45.8]} 39. Bg5 {[%clk 0:00:09.4]} 39... h6 {[%clk 0:00:44.1]} 40. Bf4
{[%clk 0:00:08.6]} 40... e5 {[%clk 0:00:43]} 41. Be3 {[%clk 0:00:09]} 41... Re2
{[%clk 0:00:42.7]} 42. Bc5 {[%clk 0:00:09.2]} 42... Rb2 {[%clk 0:00:42.7]} 43.
Rb8+ {[%clk 0:00:08.8]} 43... Kh7 {[%clk 0:00:42.4]} 44. Bxb4 {[%clk 0:00:09.5]}
44... Rxb3 {[%clk 0:00:42.7]} 45. Bd6 {[%clk 0:00:09.8]} 45... Rxb8 {[%clk
0:00:42.8]} 46. Bxb8 {[%clk 0:00:10.7]} 46... e4 {[%clk 0:00:42]} 47. Kg2 {[%clk
0:00:11.3]} 47... d4 {[%clk 0:00:41.8]} 48. Kf1 {[%clk 0:00:11.9]} 48... d3
{[%clk 0:00:41.4]} 49. Bf4 {[%clk 0:00:11.2]} 49... g5 {[%clk 0:00:39.6]} 50.
Be3 {[%clk 0:00:10.1]} 50... Kg6 {[%clk 0:00:40]} 51. h3 {[%clk 0:00:10.1]}
51... Kf5 {[%clk 0:00:39.9]} 52. g4+ {[%clk 0:00:09.8]} 52... Ke5 {[%clk
0:00:40.3]} 53. h4 {[%clk 0:00:10]} 53... Bd4 {[%clk 0:00:33.1]} 54. Bc1 {[%clk
0:00:05.5]} 54... e3 {[%clk 0:00:33.3]} 55. hxg5 {[%clk 0:00:04.1]} 55... hxg5
{[%clk 0:00:33.2]} 56. Ba3 {[%clk 0:00:02.8]} 56... Kf4 {[%clk 0:00:33.3]} 57.
Bd6+ {[%clk 0:00:01.3]} 57... Kf3 {[%clk 0:00:33.2]} 58. Ke1 {[%clk 0:00:02.2]}
58... Bc3+ {[%clk 0:00:32.7]} 59. Kd1 {[%clk 0:00:02.5]} 59... e2+ {[%clk
0:00:32.7]} 0-1

[Event "*** Titled Tuesday Blitz"]
[Site "Chess.com"]
[Date "2020.04.07"]
[Round "7"]
[White "tacticthunder"]
[Black "Vusatiuk_Vladimir"]
[Result "1-0"]
[WhiteElo "2538"]
[BlackElo "2371"]
[TimeControl "180+1"]
[EndTime "14:19:17 PDT"]
[Termination "tacticthunder won by resignation"]

1. e4 {[%clk 0:03:00]} 1... c5 {[%clk 0:03:00.4]} 2. Nf3 {[%clk 0:03:00.1]} 2...
Nc6 {[%clk 0:03:00.8]} 3. d4 {[%clk 0:03:00.6]} 3... cxd4 {[%clk 0:03:01.7]} 4.
Nxd4 {[%clk 0:03:01.5]} 4... e5 {[%clk 0:03:01.6]} 5. Nb5 {[%clk 0:03:01.7]}
5... d6 {[%clk 0:03:02]} 6. c4 {[%clk 0:03:00.9]} 6... Be7 {[%clk 0:02:59.6]} 7.
Be3 {[%clk 0:02:59.9]} 7... Be6 {[%clk 0:02:55.9]} 8. Be2 {[%clk 0:02:58.7]}
8... a6 {[%clk 0:02:53.9]} 9. N5c3 {[%clk 0:02:57.6]} 9... Bg5 {[%clk
0:02:33.9]} 10. O-O {[%clk 0:02:47.8]} 10... h6 {[%clk 0:02:32.4]} 11. Na3
{[%clk 0:02:45.7]} 11... Bxe3 {[%clk 0:02:32]} 12. fxe3 {[%clk 0:02:46.6]} 12...
Qb6 {[%clk 0:02:28.9]} 13. Qd2 {[%clk 0:02:45.5]} 13... Nge7 {[%clk 0:02:11.2]}
14. Nd5 {[%clk 0:02:41.7]} 14... Qd8 {[%clk 0:02:09.1]} 15. Rad1 {[%clk
0:02:34]} 15... O-O {[%clk 0:02:07.1]} 16. Nxe7+ {[%clk 0:02:29.3]} 16... Qxe7
{[%clk 0:02:04.5]} 17. Qxd6 {[%clk 0:02:30.2]} 17... Qg5 {[%clk 0:02:04.5]} 18.
Nc2 {[%clk 0:02:23.9]} 18... Rfd8 {[%clk 0:01:56.4]} 19. Qc7 {[%clk 0:02:22.3]}
19... Bg4 {[%clk 0:01:47.8]} 20. Qxf7+ {[%clk 0:02:15.4]} 20... Kh8 {[%clk
0:01:41.1]} 21. Bxg4 {[%clk 0:01:54]} 21... Qxg4 {[%clk 0:01:40]} 22. Qf3 {[%clk
0:01:54]} 22... Qe6 {[%clk 0:01:32.5]} 23. b3 {[%clk 0:01:45.6]} 23... b5 {[%clk
0:01:30.8]} 24. c5 {[%clk 0:01:40.3]} 24... b4 {[%clk 0:01:29.6]} 25. Rd5 {[%clk
0:01:20.9]} 25... a5 {[%clk 0:01:01]} 26. Qf7 {[%clk 0:01:12.4]} 26... Qg4
{[%clk 0:00:53.1]} 27. Qf3 {[%clk 0:00:54.9]} 27... Qg6 {[%clk 0:00:47.2]} 28.
Qf5 {[%clk 0:00:52.9]} 28... Qxf5 {[%clk 0:00:21.2]} 29. Rxf5 {[%clk 0:00:53.8]}
29... Ne7 {[%clk 0:00:21.6]} 30. Rfxe5 {[%clk 0:00:36]} 30... Nxd5 {[%clk
0:00:12.6]} 31. exd5 {[%clk 0:00:36.9]} 31... Rac8 {[%clk 0:00:10.5]} 32. c6
{[%clk 0:00:28.7]} 32... Kg8 {[%clk 0:00:11.4]} 33. Nd4 {[%clk 0:00:27.3]} 33...
Kf7 {[%clk 0:00:11.5]} 34. Kf2 {[%clk 0:00:25.2]} 34... Kf6 {[%clk 0:00:10.4]}
35. Re6+ {[%clk 0:00:24.7]} 35... Kf7 {[%clk 0:00:10.8]} 36. e4 {[%clk
0:00:25.4]} 36... Re8 {[%clk 0:00:08.8]} 37. Rxe8 {[%clk 0:00:19.8]} 37... Kxe8
{[%clk 0:00:09.7]} 38. d6 {[%clk 0:00:19.8]} 38... Kd8 {[%clk 0:00:08]} 39. e5
{[%clk 0:00:18.8]} 39... a4 {[%clk 0:00:07.1]} 40. e6 {[%clk 0:00:18.7]} 40...
axb3 {[%clk 0:00:07.6]} 41. axb3 {[%clk 0:00:19.6]} 41... Ra8 {[%clk 0:00:08.2]}
42. e7+ {[%clk 0:00:19.7]} 42... Ke8 {[%clk 0:00:08.6]} 43. Ne6 {[%clk
0:00:19.3]} 43... Kf7 {[%clk 0:00:04.1]} 44. Nc7 {[%clk 0:00:17.5]} 1-0